bitfinex/quotes_BTCUSD_20260103
["timestamp","ask_amount","ask_price","bid_price","bid_amount"]
[1767423349971,0.0111299,89848.0,89843.0,0.01113052]
[1767423350539,0.0111299,89848.0,89844.0,0.0111304]
[1767423350941,0.0111299,89848.0,89843.0,0.01113052]
[1767423351360,0.0111299,89848.0,89844.0,0.0111304]
[1767423351556,0.01117789,89849.0,89844.0,0.0111304]
[1767423353540,0.0111299,89848.0,89843.0,0.01113052]
[1767423353865,0.0111299,89848.0,89844.0,0.0111304]
[1767423354266,0.01117789,89849.0,89844.0,0.0111304]
[1767423354487,0.01117789,89849.0,89845.0,0.01113027]
[1767423354945,0.01117789,89849.0,89844.0,0.0111304]
[1767423355713,0.01117789,89849.0,89845.0,0.01113027]
[1767423355866,0.0111299,89848.0,89844.0,0.0111304]
[1767423356053,0.0111299,89848.0,89843.0,0.01113052]
[1767423356954,0.0111299,89848.0,89844.0,0.0111304]
[1767423357156,0.01117789,89849.0,89844.0,0.0111304]
[1767423357589,0.01117789,89849.0,89845.0,0.01113027]
[1767423357965,0.0111299,89848.0,89844.0,0.0111304]
[1767423358220,0.01117789,89849.0,89844.0,0.0111304]
[1767423359467,4.811e-05,89849.0,89844.0,0.0111304]
[1767423359672,0.05564819,89851.0,89849.0,0.00095089]
[1767423359893,0.05564819,89851.0,89849.0,0.00036049]
[1767423360071,0.01112941,89852.0,89849.0,0.00036049]
[1767423360873,0.01017841,89852.0,89849.0,0.00036049]
[1767423362728,0.01112928,89853.0,89849.0,0.00036049]
[1767423364524,0.01112941,89852.0,89849.0,0.00036049]
[1767423365181,0.01112928,89853.0,89849.0,0.00036049]
[1767423365619,0.01112941,89852.0,89849.0,0.00036049]
[1767423366062,0.01112916,89854.0,89849.0,0.01149027]
[1767423366318,0.01112,89853.0,89850.0,0.01112966]
[1767423366977,0.01112,89852.0,89850.0,0.01112966]
[1767423367190,0.01112,89852.0,89849.0,0.05970606]
[1767423367403,0.01112,89852.0,89849.0,0.01149027]
[1767423368483,0.01112,89852.0,89849.0,0.0671388]
[1767423370262,0.01112891,89856.0,89850.0,0.01112966]
[1767423370463,0.01112,89855.0,89852.0,0.01112941]
[1767423370878,0.01107661,89855.0,89852.0,0.01112941]
[1767423371286,0.0111278,89865.0,89858.0,0.04821579]
[1767423371553,0.02224817,89862.0,89857.0,0.01112879]
[1767423371764,0.01112829,89861.0,89857.0,0.01112879]
[1767423371964,0.01108431,89861.0,89857.0,0.01112879]
[1767423372894,0.02224817,89862.0,89857.0,0.01112879]
[1767423373871,0.02224817,89862.0,89858.0,0.01112866]
[1767423374519,0.05563964,89864.0,89859.0,0.01112854]
[1767423374725,0.0110764,89861.0,89858.0,0.01112866]
[1767423375753,0.0110764,89861.0,89859.0,0.05564272]
[1767423376490,0.01112767,89866.0,89861.0,0.01112829]
[1767423376720,0.000999,89861.0,89858.0,0.01112866]
[1767423376917,0.000999,89861.0,89858.0,0.06677148]
[1767423376918,0.00095683,89861.0,89858.0,0.06677148]
[1767423377116,0.01112,89864.0,89860.0,0.01112842]
[1767423378249,0.01112,89864.0,89861.0,0.01112829]
[1767423378660,0.01107667,89864.0,89861.0,0.01112829]
[1767423379286,0.01107667,89864.0,89860.0,0.01112842]
[1767423379495,0.01103357,89864.0,89861.0,0.01112829]
[1767423380166,0.01103357,89864.0,89861.0,0.06676935]
[1767423380782,0.01112743,89868.0,89863.0,0.01112805]
[1767423380783,0.01112755,89867.0,89863.0,0.01112805]
[1767423380942,0.01112,89866.0,89863.0,0.01112805]
[1767423382550,0.01112,89866.0,89862.0,0.01112817]
[1767423383259,0.01112,89866.0,89863.0,0.01112805]
[1767423383403,0.01107662,89866.0,89863.0,0.01112805]
[1767423385202,0.01112755,89867.0,89863.0,0.01112805]
[1767423385409,0.01112,89866.0,89863.0,0.01112805]
[1767423386224,0.011078,89866.0,89863.0,0.01112805]
[1767423389716,0.011036,89866.0,89862.0,0.01112817]
[1767423389917,0.011036,89866.0,89863.0,0.01112805]
[1767423390157,0.011036,89866.0,89861.0,0.06676935]
[1767423390375,0.01112755,89865.0,89863.0,0.01112805]
[1767423390700,0.01112755,89865.0,89862.0,0.01112817]
[1767423390926,0.01108406,89865.0,89862.0,0.01112817]
[1767423391330,0.000999,89862.0,89861.0,0.01112829]
[1767423391540,0.01108406,89865.0,89862.0,0.01112817]
[1767423391759,0.011036,89866.0,89862.0,0.01112817]
[1767423392076,0.02216367,89865.0,89862.0,0.01112817]
[1767423393016,0.02212051,89865.0,89862.0,0.01112817]
[1767423393708,0.02212051,89865.0,89861.0,0.01112829]
[1767423393915,0.02207747,89865.0,89862.0,0.01112817]
[1767423394507,0.02207747,89865.0,89861.0,0.01112829]
[1767423394929,0.03320527,89865.0,89860.0,0.06677012]
[1767423395132,0.03320527,89865.0,89860.0,0.01112842]
[1767423396418,0.01112792,89864.0,89859.0,0.01112854]
[1767423396591,0.01112792,89864.0,89860.0,0.01112842]
[1767423397223,0.01112792,89864.0,89859.0,0.01112854]
[1767423397442,0.01112792,89864.0,89860.0,0.01112842]
[1767423397607,0.01112792,89864.0,89859.0,0.01112854]
[1767423397608,0.04708691,89863.0,89859.0,0.01112854]
[1767423398817,0.04708691,89863.0,89860.0,0.01112842]
[1767423399045,0.01112792,89864.0,89860.0,0.01112842]
[1767423399422,0.01112792,89864.0,89859.0,0.01112854]
[1767423399623,0.01108632,89864.0,89859.0,0.01112854]
[1767423400179,0.01112805,89863.0,89859.0,0.01112854]
[1767423400574,0.08884469,89865.0,89859.0,0.01112854]
[1767423400575,0.03320527,89865.0,89859.0,0.01112854]
[1767423400798,0.01112,89864.0,89861.0,0.01112829]
[1767423401092,0.01112,89864.0,89860.0,0.01112842]
[1767423401718,0.01112805,89863.0,89859.0,0.01112854]
[1767423401926,0.02224792,89864.0,89859.0,0.01112854]
[1767423402134,0.01112805,89863.0,89858.0,0.06677162]
[1767423402467,0.02224792,89864.0,89860.0,0.01112842]
[1767423402955,0.01112,89864.0,89860.0,0.01112842]
[1767423403369,0.01112817,89862.0,89857.0,0.01112879]
[1767423404213,0.02224792,89864.0,89858.0,0.06677151]
[1767423404612,0.02224792,89864.0,89860.0,0.01112842]
[1767423405111,0.000999,89860.0,89858.0,0.01112866]
[1767423405752,0.01112805,89863.0,89859.0,0.01112854]
[1767423405985,0.02224792,89864.0,89860.0,0.01112842]
[1767423406265,0.02224792,89864.0,89859.0,0.01112854]
[1767423406463,0.01112805,89863.0,89859.0,0.01112854]
[1767423406687,0.02224792,89864.0,89860.0,0.01112842]
[1767423406863,0.02224792,89864.0,89859.0,0.01112854]
[1767423408669,0.02224792,89864.0,89860.0,0.01112842]
[1767423408879,0.000999,89860.0,89859.0,0.01112854]
[1767423409260,0.02224792,89864.0,89859.0,0.01112854]
[1767423409466,0.01112805,89863.0,89858.0,0.01112866]
[1767423410856,0.01112829,89861.0,89857.0,0.01112879]
[1767423411395,0.01112829,89861.0,89856.0,0.01112891]
[1767423411623,0.01112842,89860.0,89855.0,0.01112904]
[1767423411840,0.01112842,89860.0,89856.0,0.01112891]
[1767423412471,0.01112842,89860.0,89855.0,0.01112904]
[1767423412788,0.01112866,89858.0,89854.0,0.05970286]
[1767423412900,0.000999,89855.0,89851.0,0.01112953]
[1767423413105,0.01112891,89856.0,89851.0,0.01112953]
[1767423413591,0.01112879,89857.0,89852.0,0.01112941]
[1767423415879,0.01112879,89857.0,89853.0,0.01112928]
[1767423416266,0.06677248,89858.0,89853.0,0.01112928]
[1767423416469,0.01112879,89857.0,89852.0,0.01112941]
[1767423416841,0.01112891,89856.0,89852.0,0.01112941]
[1767423417584,0.01112879,89857.0,89852.0,0.01112941]
[1767423417772,0.01112879,89857.0,89852.0,0.05970311]
[1767423417977,0.01112866,89858.0,89853.0,0.05564644]
[1767423418196,0.01112866,89858.0,89854.0,0.01112916]
[1767423418425,0.01108736,89858.0,89854.0,0.01112916]
[1767423418900,0.01112854,89859.0,89854.0,0.01112916]
[1767423419097,0.01112792,89864.0,89859.0,0.000999]
[1767423419298,0.01112805,89863.0,89859.0,0.000999]
[1767423419597,0.01112829,89861.0,89856.0,0.01112891]
[1767423420223,0.01112829,89861.0,89857.0,0.01112879]
[1767423420429,0.01112842,89860.0,89855.0,0.05970274]
[1767423420623,0.01112842,89860.0,89856.0,0.01112891]
[1767423421014,0.01112842,89860.0,89855.0,0.05970274]
[1767423421457,0.01112842,89860.0,89856.0,0.01112891]
[1767423422054,0.01112866,89858.0,89855.0,0.0485737]
[1767423422262,0.01112879,89857.0,89853.0,0.05942835]
[1767423422421,0.01112866,89858.0,89854.0,0.01112916]
[1767423422617,0.01112866,89858.0,89853.0,0.05942835]
[1767423422841,0.01112866,89858.0,89854.0,0.01112916]
[1767423423244,0.01112866,89858.0,89853.0,0.05942835]
[1767423423450,0.01112866,89858.0,89854.0,0.01112916]
[1767423424071,0.01112854,89859.0,89855.0,0.01112904]
[1767423424475,0.01112854,89859.0,89854.0,0.01112916]
[1767423424622,0.01112854,89859.0,89853.0,0.05942835]
[1767423424623,0.01112866,89858.0,89853.0,0.05942835]
[1767423424824,0.01112854,89859.0,89855.0,0.01112904]
[1767423425438,0.01112842,89860.0,89855.0,0.01112904]
[1767423425804,0.01112854,89859.0,89855.0,0.01112904]
[1767423425983,0.06676946,89862.0,89857.0,0.01112879]
[1767423426184,0.06672608,89862.0,89857.0,0.01112879]
[1767423426587,0.01112829,89861.0,89856.0,0.01112891]
[1767423426794,0.01112842,89860.0,89856.0,0.01112891]
[1767423427159,0.01112866,89858.0,89853.0,0.05942835]
[1767423427398,0.01112854,89859.0,89853.0,0.01112928]
[1767423427574,0.01112854,89859.0,89854.0,0.01112916]
[1767423427929,0.01112842,89860.0,89854.0,0.06677453]
[1767423428500,0.01112854,89859.0,89855.0,0.01112904]
[1767423428700,0.01112866,89858.0,89853.0,0.01112928]
[1767423428898,0.01112866,89858.0,89854.0,0.01112916]
[1767423429281,0.01112854,89859.0,89855.0,0.01112904]
[1767423429693,0.01112829,89861.0,89855.0,0.06677424]
[1767423429895,0.01112842,89860.0,89855.0,0.01112904]
[1767423430098,0.01112854,89859.0,89854.0,0.01112916]
[1767423430280,0.01112866,89858.0,89853.0,0.01112928]
[1767423430696,0.01112866,89858.0,89854.0,0.01112916]
[1767423430899,0.01112792,89864.0,89858.0,0.05942773]
[1767423431076,0.01112,89865.0,89860.0,0.06677016]
[1767423431293,0.01112,89865.0,89862.0,0.01112817]
[1767423432178,0.05746393,89865.0,89860.0,0.04466775]
[1767423432417,0.01112,89865.0,89859.0,0.01112854]
[1767423432620,0.01112,89865.0,89862.0,0.06676859]
[1767423432830,0.010121,89865.0,89862.0,0.01112817]
[1767423434204,0.010121,89865.0,89863.0,0.05564025]
[1767423434847,0.010121,89865.0,89862.0,0.01112817]
[1767423435341,0.010121,89865.0,89862.0,0.06676868]
[1767423437252,0.010121,89865.0,89862.0,0.01112817]
[1767423437869,0.010121,89865.0,89862.0,0.06676868]
[1767423438248,0.010121,89865.0,89862.0,0.11506775]
[1767423438432,0.010121,89865.0,89863.0,0.04829907]
[1767423438650,0.010121,89865.0,89862.0,0.06676868]
[1767423439096,0.010121,89865.0,89863.0,0.04829907]
[1767423441117,0.01112656,89875.0,89868.0,0.01112743]
[1767423441345,0.01112,89874.0,89870.0,0.01112718]
[1767423441561,0.01112,89874.0,89871.0,0.01012805]
[1767423442376,0.0222473,89874.0,89871.0,0.01012805]
[1767423442576,0.0222473,89874.0,89871.0,0.05842712]
[1767423442789,0.01112,89873.0,89872.0,0.059426]
[1767423442991,0.01112,89873.0,89872.0,0.01112693]
[1767423443200,0.01112,89873.0,89871.0,0.01012805]
[1767423444040,0.01112,89873.0,89871.0,0.05842712]
[1767423444838,0.01112,89873.0,89872.0,0.04829907]
[1767423445881,0.01112,89873.0,89871.0,0.06576293]
[1767423446129,0.01112,89873.0,89872.0,0.04829907]
[1767423446311,0.01112,89873.0,89871.0,0.06576293]
[1767423446715,0.01112,89873.0,89872.0,0.04829907]
[1767423446871,0.0001508,89876.0,89872.0,0.04829907]
[1767423446872,0.0001508,89876.0,89873.0,0.01212581]
[1767423447135,0.01112,89875.0,89874.0,0.04829907]
[1767423448196,0.01112,89875.0,89873.0,0.01112681]
[1767423448430,0.010121,89875.0,89873.0,0.01112681]
[1767423448666,0.0001508,89876.0,89873.0,0.0667604]
[1767423448869,0.01112,89875.0,89873.0,0.0657614]
[1767423449078,0.01112,89875.0,89874.0,0.05563301]
[1767423449624,0.010121,89875.0,89874.0,0.05563301]
[1767423450892,0.01112,89875.0,89874.0,0.05563301]
[1767423451113,1e-08,89876.0,89874.0,0.05563301]
[1767423453282,1e-08,89876.0,89875.0,0.04525857]
[1767423453688,0.01112569,89882.0,89877.0,0.01112631]
[1767423453889,0.01112,89881.0,89877.0,0.01012731]
[1767423454276,0.01112532,89885.0,89880.0,0.01112594]
[1767423454503,0.01112,89884.0,89880.0,0.01112594]
[1767423454916,0.01112,89883.0,89879.0,0.05638463]
[1767423455096,0.02224557,89883.0,89879.0,0.05638463]
[1767423455278,0.02224557,89883.0,89879.0,0.04525857]
[1767423455483,0.02224557,89883.0,89879.0,0.01112606]
[1767423455906,5.616e-05,89884.0,89881.0,0.05638439]
[1767423456118,0.01112,89883.0,89882.0,0.05562849]
[1767423456314,0.01112,89883.0,89881.0,0.05638439]
[1767423456315,0.01112,89883.0,89881.0,0.11201306]
[1767423456521,0.01112,89883.0,89882.0,0.04525857]
[1767423456714,5.616e-05,89884.0,89882.0,0.04525857]
[1767423456923,0.01112,89883.0,89882.0,0.04525857]
[1767423457141,0.01112,89883.0,89880.0,0.1120141]
[1767423457340,0.01112,89883.0,89881.0,0.10088725]
[1767423457747,0.01112,89883.0,89881.0,0.04525857]
[1767423458542,0.010121,89883.0,89880.0,0.06675553]
[1767423458787,0.010121,89883.0,89880.0,0.1120141]
[1767423459154,0.010121,89883.0,89880.0,0.1110151]
[1767423459351,5.616e-05,89884.0,89881.0,0.01112582]
[1767423459561,0.01112,89883.0,89881.0,0.01112582]
[1767423461776,5.616e-05,89884.0,89882.0,0.05562803]
[1767423461976,0.01112,89883.0,89882.0,0.05562803]
[1767423462396,0.06674808,89891.0,89884.0,0.04525857]
[1767423462641,0.01112,89890.0,89884.0,0.04525857]
[1767423462800,0.01112495,89888.0,89884.0,0.04525857]
[1767423462998,0.01112495,89888.0,89884.0,0.04425957]
[1767423463237,0.01112507,89887.0,89882.0,0.05638426]
[1767423463444,0.01112507,89887.0,89883.0,0.01112557]
[1767423463608,0.0111252,89886.0,89881.0,0.05638439]
[1767423463932,0.01112545,89884.0,89881.0,0.04525857]
[1767423464142,0.01112557,89883.0,89878.0,0.05638476]
[1767423464502,0.0111252,89886.0,89878.0,0.05638476]
[1767423464503,0.0111252,89886.0,89881.0,0.01112582]
[1767423464702,0.01112507,89887.0,89882.0,0.01112569]
[1767423465119,0.01112532,89885.0,89879.0,0.01112606]
[1767423465349,0.01112532,89885.0,89875.0,0.05563259]
[1767423465350,0.01112545,89884.0,89877.0,0.01112631]
[1767423465494,0.02224557,89883.0,89878.0,0.04525857]
[1767423466087,0.01112582,89881.0,89878.0,0.04525857]
[1767423466279,0.01112569,89882.0,89878.0,0.04525857]
[1767423467042,0.02224557,89883.0,89878.0,0.05638476]
[1767423467254,0.01112,89883.0,89879.0,0.01112606]
[1767423467454,0.00105516,89882.0,89879.0,0.01112606]
[1767423467693,0.01112,89883.0,89880.0,0.04525857]
[1767423467694,0.02224557,89883.0,89880.0,0.04525857]
[1767423467834,0.01112,89883.0,89880.0,0.05638451]
[1767423469406,0.01112,89883.0,89880.0,0.04525857]
[1767423470129,0.02224557,89883.0,89880.0,0.04525857]
[1767423470581,0.02224557,89883.0,89879.0,0.01112606]
[1767423470794,0.02224557,89883.0,89879.0,0.05638463]
[1767423471015,0.01112569,89882.0,89877.0,0.01112631]
[1767423471220,0.01112,89883.0,89882.0,0.000999]
[1767423471448,0.01112582,89881.0,89877.0,0.04525857]
[1767423471655,0.01112569,89882.0,89877.0,0.04525857]
[1767423472072,0.01112569,89882.0,89878.0,0.05638476]
[1767423472529,0.01108341,89882.0,89878.0,0.05638476]
[1767423472757,0.02224557,89883.0,89878.0,0.05638476]
[1767423472975,0.01112,89883.0,89879.0,0.05638463]
[1767423473219,0.01007773,89883.0,89880.0,0.04525857]
[1767423473418,0.01007773,89883.0,89879.0,0.01112606]
[1767423473626,0.01007773,89883.0,89879.0,0.05638463]
[1767423473973,0.0212033,89883.0,89879.0,0.05638463]
[1767423474322,0.0212033,89883.0,89879.0,0.01112606]
[1767423474531,0.01007773,89883.0,89879.0,0.05638463]
[1767423474721,0.01007773,89883.0,89878.0,0.06675698]
[1767423474925,0.01007773,89883.0,89879.0,0.05638463]
[1767423475126,0.01007773,89883.0,89880.0,0.05638451]
[1767423475337,0.01007773,89883.0,89880.0,0.04525857]
[1767423475490,0.01007773,89883.0,89880.0,0.05638451]
[1767423476129,0.01007773,89883.0,89880.0,0.04525857]
[1767423476322,0.0212033,89883.0,89880.0,0.04525857]
[1767423477942,0.0212033,89883.0,89878.0,0.01112619]
[1767423478341,0.0212033,89883.0,89879.0,0.05638463]
[1767423479020,0.0212033,89883.0,89879.0,0.04525857]
[1767423480484,0.000999,89879.0,89877.0,0.01112631]
[1767423480665,0.000999,89879.0,89876.0,0.04930261]
[1767423480880,0.01212506,89879.0,89876.0,0.04930261]
[1767423481083,0.01112594,89880.0,89876.0,0.04930261]
[1767423481295,0.01112557,89883.0,89879.0,0.04930261]
[1767423481489,0.01112,89884.0,89883.0,0.04930261]
[1767423481708,0.01112,89884.0,89883.0,0.04830361]
[1767423481908,0.01112,89885.0,89883.0,0.04830361]
[1767423482111,0.02224532,89885.0,89877.0,0.06675735]
[1767423482328,0.01112569,89882.0,89878.0,0.04930261]
[1767423482471,0.02224532,89885.0,89882.0,0.04930261]
[1767423482673,0.02224532,89885.0,89883.0,0.04930261]
[1767423482930,0.05562772,89884.0,89883.0,0.04930261]
[1767423483666,0.07787241,89885.0,89883.0,0.04930261]
[1767423485202,0.02224532,89885.0,89883.0,0.04930261]
[1767423487119,0.010121,89885.0,89883.0,0.04930261]
[1767423490148,0.04549546,89884.0,89879.0,0.06675602]
[1767423490314,0.01112,89884.0,89879.0,0.05563034]
[1767423490514,0.01112,89884.0,89882.0,0.04930261]
[1767423490716,0.00612532,89885.0,89884.0,0.04930261]
[1767423490916,0.01724532,89885.0,89881.0,0.04930261]
[1767423491143,0.01112,89885.0,89881.0,0.06042843]
[1767423491354,0.01112,89885.0,89882.0,0.04930261]
[1767423491555,0.01112,89885.0,89882.0,0.0604283]
[1767423492158,0.01112,89885.0,89882.0,0.04930261]
[1767423492950,0.01112507,89887.0,89882.0,0.0604283]
[1767423493090,0.01112507,89887.0,89882.0,0.01112569]
[1767423493494,0.01112507,89887.0,89883.0,0.06042818]
[1767423493906,0.01112507,89887.0,89883.0,0.01112557]
[1767423494080,0.06675016,89888.0,89883.0,0.04930261]
[1767423494881,0.01112495,89888.0,89883.0,0.04930261]
[1767423495084,0.01112495,89888.0,89884.0,0.06042806]
[1767423495690,0.01112483,89889.0,89888.0,0.000999]
[1767423495894,0.01112495,89888.0,89884.0,0.06042806]
[1767423496095,0.06674791,89891.0,89885.0,0.11605408]
[1767423496096,0.01112458,89891.0,89885.0,0.11605408]
[1767423496302,0.01112458,89891.0,89887.0,0.04930261]
[1767423496510,0.01112,89890.0,89889.0,0.04930261]
[1767423497116,0.01112446,89892.0,89889.0,0.04930261]
[1767423497359,0.01112433,89893.0,89891.0,0.04930261]
[1767423497547,0.01112,89892.0,89891.0,0.04930261]
[1767423498750,0.00057436,89894.0,89892.0,0.05030161]
[1767423499141,0.00057436,89894.0,89892.0,0.04930261]
[1767423500216,0.00057436,89894.0,89893.0,0.10492429]
[1767423500217,3.6e-07,89894.0,89893.0,0.10492429]
[1767423500544,3.6e-07,89894.0,89893.0,0.04930261]
[1767423501121,0.01112322,89902.0,89898.0,0.01112371]
[1767423501323,0.02224334,89901.0,89896.0,0.01112396]
[1767423502046,0.01112,89901.0,89896.0,0.06674349]
[1767423502178,0.01112,89901.0,89898.0,0.01112371]
[1767423502935,0.01112,89901.0,89897.0,0.01112384]
[1767423503947,0.01112,89901.0,89897.0,0.06042645]
[1767423504244,0.02224334,89901.0,89897.0,0.04930261]
[1767423504533,0.01112,89901.0,89897.0,0.06042645]
[1767423505078,0.01112347,89900.0,89897.0,0.04872861]
[1767423505300,0.01112347,89900.0,89892.0,0.05562215]
[1767423505301,0.0667451,89895.0,89885.0,0.01112532]
[1767423505509,0.0667451,89895.0,89886.0,0.04930261]
[1767423505510,0.01112458,89891.0,89886.0,0.04930261]
[1767423505938,0.01112458,89891.0,89886.0,0.06042781]
[1767423506166,0.01112446,89892.0,89889.0,0.04930261]
[1767423507014,0.05562292,89891.0,89889.0,0.04930261]
[1767423507393,0.01112507,89887.0,89884.0,0.04930261]
[1767423507604,0.0111252,89886.0,89883.0,0.00050444]
[1767423508027,0.05562663,89885.0,89883.0,0.00050444]
[1767423508229,0.05451703,89885.0,89883.0,0.00050444]
[1767423508410,0.05562723,89885.0,89883.0,0.00050444]
[1767423508988,0.05451764,89885.0,89883.0,0.00050444]
[1767423509193,0.05451764,89885.0,89883.0,0.04841645]
[1767423509397,0.05451764,89885.0,89879.0,0.0333858]
[1767423509610,0.05451764,89885.0,89864.0,0.06264832]
[1767423509611,0.01112606,89879.0,89871.0,0.01112705]
[1767423509809,0.01112606,89879.0,89872.0,0.05769767]
[1767423509810,0.01112644,89876.0,89872.0,0.05769767]
[1767423510046,0.01112606,89879.0,89874.0,0.01112668]
[1767423510251,0.21791722,89884.0,89872.0,0.04657074]
[1767423510546,0.05563591,89870.0,89869.0,1e-08]
[1767423512181,0.06676161,89872.0,89869.0,1e-08]
[1767423512379,0.05563591,89870.0,89869.0,1e-08]
[1767423512594,0.06676161,89872.0,89869.0,1e-08]
[1767423513216,0.05563588,89871.0,89869.0,1e-08]
[1767423514100,0.06676161,89872.0,89869.0,1e-08]
[1767423515271,0.01112681,89873.0,89869.0,1e-08]
[1767423515390,0.01119493,89873.0,89869.0,1e-08]
[1767423515848,0.01112693,89872.0,89869.0,1e-08]
[1767423516173,0.01119493,89873.0,89869.0,1e-08]
[1767423516319,6.812e-05,89873.0,89869.0,0.01112731]
[1767423516523,0.01112668,89874.0,89870.0,0.01112718]
[1767423516726,0.01112656,89875.0,89870.0,0.01112718]
[1767423517515,0.01112656,89875.0,89871.0,0.01112705]
[1767423517730,0.02224656,89875.0,89870.0,0.01112718]
[1767423518385,0.01112,89875.0,89872.0,0.01112693]
[1767423518547,0.02224656,89875.0,89870.0,0.04657074]
[1767423519478,0.01112668,89874.0,89870.0,0.05769792]
[1767423519873,0.01112668,89874.0,89870.0,0.04657074]
[1767423520091,0.01112668,89874.0,89870.0,0.05769792]
[1767423520607,0.01112,89875.0,89871.0,0.01112705]
[1767423520812,0.01112,89875.0,89872.0,0.01112693]
[1767423520953,0.01112,89875.0,89871.0,0.01112705]
[1767423521154,0.02224656,89875.0,89871.0,0.01112705]
[1767423521555,0.02224656,89875.0,89870.0,0.05769792]
[1767423521753,0.02224656,89875.0,89871.0,0.01112705]
[1767423522113,0.01112,89875.0,89872.0,0.01112693]
[1767423522292,0.01112,89875.0,89872.0,0.05769767]
[1767423522662,0.01112,89875.0,89872.0,0.01112693]
[1767423524285,0.01112631,89877.0,89872.0,0.01112693]
[1767423524493,0.01112,89876.0,89873.0,0.01112681]
[1767423524695,0.01112,89877.0,89873.0,0.01112681]
[1767423524971,0.01112644,89876.0,89871.0,0.04657074]
[1767423525169,0.01112644,89876.0,89872.0,0.01112693]
[1767423525344,0.01112693,89872.0,89869.0,1e-08]
[1767423526021,0.06676206,89872.0,89869.0,1e-08]
[1767423526189,0.05563591,89870.0,89869.0,1e-08]
[1767423526388,0.06676206,89872.0,89869.0,1e-08]
[1767423526640,0.05563591,89870.0,89869.0,1e-08]
[1767423527053,0.06676206,89872.0,89869.0,1e-08]
[1767423529003,0.05563591,89870.0,89869.0,1e-08]
[1767423529296,0.06676206,89872.0,89869.0,1e-08]
[1767423531293,0.01112693,89872.0,89869.0,1e-08]
[1767423531495,0.01112705,89871.0,89866.0,0.05765461]
[1767423532109,0.01112705,89871.0,89865.0,0.0111278]
[1767423532110,0.0111273,89869.0,89865.0,0.0111278]
[1767423532531,0.01112718,89870.0,89865.0,0.0111278]
[1767423533504,0.01112718,89870.0,89865.0,0.05769854]
[1767423534186,0.0111273,89869.0,89865.0,0.05769854]
[1767423535569,0.0111273,89869.0,89865.0,0.04657074]
[1767423535754,0.01112718,89870.0,89865.0,0.0111278]
[1767423535944,0.0111273,89869.0,89864.0,0.01112792]
[1767423536150,0.0111273,89869.0,89864.0,0.01119604]
[1767423536535,0.0111273,89869.0,89865.0,0.0111278]
[1767423536744,0.0111273,89869.0,89864.0,0.05921964]
[1767423537224,0.01112718,89870.0,89864.0,0.05921964]
[1767423538453,0.0111273,89869.0,89865.0,0.0111278]
[1767423538652,0.0111273,89869.0,89865.0,0.0591514]
[1767423539056,0.06676288,89871.0,89865.0,0.0591514]
[1767423539476,0.01112718,89870.0,89866.0,0.05960403]
[1767423542378,0.01112718,89870.0,89866.0,0.04847636]
[1767423542586,0.01112718,89870.0,89865.0,0.0111278]
[1767423542699,0.01112718,89870.0,89865.0,0.05960416]
[1767423543116,0.01112718,89870.0,89866.0,0.01112767]
[1767423543361,0.01112718,89870.0,89866.0,0.05960403]
[1767423544352,0.0111273,89869.0,89866.0,0.04847636]
[1767423544899,0.01112718,89870.0,89866.0,0.04847636]
[1767423546092,0.01112718,89870.0,89866.0,0.05960403]
[1767423546285,0.01112718,89870.0,89866.0,0.04847636]
[1767423547721,0.02224668,89874.0,89866.0,0.05960403]
[1767423547928,0.01112693,89872.0,89868.0,0.01112743]
[1767423548157,0.01112681,89873.0,89869.0,0.0111273]
[1767423548561,0.01112681,89873.0,89868.0,0.05960379]
[1767423548761,0.01112681,89873.0,89869.0,0.0111273]
[1767423549480,0.02224668,89874.0,89869.0,0.0111273]
[1767423549892,0.01112,89874.0,89871.0,0.01112705]
[1767423550305,0.01112,89874.0,89871.0,0.05960341]
[1767423551357,0.01112,89874.0,89871.0,0.11523829]
[1767423551972,0.01112,89874.0,89872.0,0.05563427]
[1767423552208,0.01112,89874.0,89871.0,0.11523829]
[1767423552909,0.01112,89874.0,89872.0,0.05563408]
[1767423555627,0.000999,89872.0,89867.0,0.01112755]
[1767423555856,0.02224668,89874.0,89868.0,0.01112743]
[1767423556030,0.02224668,89874.0,89868.0,0.05960379]
[1767423556259,0.01112681,89873.0,89870.0,0.04847636]
[1767423557025,0.02224668,89874.0,89870.0,0.04847636]
[1767423557148,0.01112,89874.0,89870.0,0.05960354]
[1767423557965,0.000999,89870.0,89869.0,0.05960366]
[1767423558175,0.000999,89870.0,89869.0,0.04847636]
[1767423558741,0.06675351,89874.0,89869.0,0.04847636]
[1767423558742,0.01112693,89872.0,89869.0,0.04847636]
[1767423558960,0.0111273,89869.0,89866.0,0.04847636]
[1767423559126,0.05563715,89868.0,89866.0,0.04847636]
[1767423559327,0.0111273,89869.0,89866.0,0.04747736]
[1767423560217,0.06676436,89869.0,89866.0,0.04747736]
[1767423560911,0.01112718,89870.0,89866.0,0.04747736]
[1767423561116,0.0111273,89869.0,89866.0,0.04747736]
[1767423561312,0.01112718,89870.0,89866.0,0.04747736]
[1767423561740,0.06676169,89872.0,89868.0,0.04847636]
[1767423561741,0.01112693,89872.0,89868.0,0.04847636]
[1767423561969,0.01112705,89871.0,89868.0,0.04847636]
[1767423562579,0.06676243,89871.0,89868.0,0.04847636]
[1767423562813,0.01112705,89871.0,89868.0,0.04847636]
[1767423565241,0.01112693,89872.0,89868.0,0.04847636]
[1767423565442,0.01112705,89871.0,89868.0,0.04847636]
[1767423565858,0.01112693,89872.0,89868.0,0.04847636]
[1767423566192,0.01112705,89871.0,89868.0,0.04847636]
[1767423567227,0.06676286,89871.0,89868.0,0.04847636]
[1767423567641,0.06676286,89871.0,89868.0,0.04843257]
[1767423568925,0.01112705,89871.0,89868.0,0.04843257]
[1767423573991,0.01012805,89871.0,89868.0,0.04843257]
[1767423574550,0.06676211,89872.0,89868.0,0.04843257]
[1767423574551,0.01112693,89872.0,89868.0,0.04843257]
[1767423575572,0.01112705,89871.0,89868.0,0.04843257]
[1767423575968,0.01112693,89872.0,89868.0,0.04843257]
[1767423576348,0.01112705,89871.0,89868.0,0.04843257]
[1767423576573,0.01112693,89872.0,89868.0,0.04843257]
[1767423576754,0.01112693,89872.0,89868.0,0.05956]
[1767423576952,0.01112693,89872.0,89868.0,0.04843257]
[1767423577243,0.01112705,89871.0,89868.0,0.04843257]
[1767423577436,0.06676274,89871.0,89868.0,0.04843257]
[1767423577833,0.01112693,89872.0,89868.0,0.04843257]
[1767423578034,0.01112681,89873.0,89868.0,0.05956]
[1767423578912,0.01112693,89872.0,89868.0,0.04843257]
[1767423579397,0.01112681,89873.0,89868.0,0.05956]
[1767423579601,0.01112693,89872.0,89868.0,0.05956]
[1767423580085,0.01112668,89874.0,89870.0,0.04661113]
[1767423580474,0.01112681,89873.0,89870.0,0.04661113]
[1767423580805,0.01112693,89872.0,89868.0,0.04661113]
[1767423581982,0.01112693,89872.0,89868.0,0.05773856]
[1767423583393,0.01112693,89872.0,89868.0,0.04661113]
[1767423585148,0.01112705,89871.0,89868.0,0.04661113]
[1767423588093,0.01112705,89871.0,89868.0,0.04561213]